fUST/lending_fUST_20251126
["ID","MTS","AMOUNT","RATE_DAILY","PERIOD"]
[394913445,1764114632192,-500.0,9.273e-05,2]
[394913446,1764114632204,-500.0,9.273e-05,2]
[394913447,1764114632214,-500.0,9.273e-05,2]
[394913448,1764114632225,-468.282186,9.273e-05,2]
[394913449,1764114632236,-500.0,9.273e-05,2]
[394913450,1764114632246,-500.0,9.273e-05,2]
[394913451,1764114632257,-500.0,9.273e-05,2]
[394913452,1764114632266,-500.0,9.273e-05,2]
[394913453,1764114632276,-500.0,9.273e-05,2]
[394913454,1764114632286,-500.0,9.273e-05,2]
[394913455,1764114632295,-500.0,9.273e-05,2]
[394913456,1764114632305,-500.0,9.273e-05,2]
[394913457,1764114632315,-313.58041989,9.273e-05,2]
[394913458,1764114632325,-500.0,9.273e-05,2]
[394913459,1764114632335,-500.0,9.273e-05,2]
[394913460,1764114632343,-500.0,9.273e-05,2]
[394913461,1764114632353,-500.0,9.273e-05,2]
[394913462,1764114632363,-500.0,9.273e-05,2]
[394913463,1764114632373,-500.0,9.273e-05,2]
[394913464,1764114632382,-500.0,9.273e-05,2]
[394913465,1764114632392,-500.0,9.273e-05,2]
[394913466,1764114632401,-202867.18938037,9.274e-05,2]
[394913467,1764114632415,-301.91648269,9.274e-05,2]
[394913468,1764114632428,-5269.30010608,9.274e-05,2]
[394913469,1764114632440,-330.25242726,9.274e-05,2]
[394913470,1764114632456,-4199.73915369,9.274e-05,2]
[394913471,1764114632467,-2200.10207672,9.274e-05,2]
[394913478,1764114637876,-500.0,9.272e-05,2]
[394913480,1764114637885,-500.0,9.272e-05,2]
[394913482,1764114637894,-530.97337733,9.272e-05,2]
[394913484,1764114637903,-8835.77436614,9.274e-05,2]
[394913486,1764114637914,-1582.3070308,9.274e-05,2]
[394913489,1764114638007,-58001.32374429,9.274e-05,2]
[394913522,1764114640311,-1470.922002,9.274e-05,2]
[394913524,1764114640322,-323.91188333,9.274e-05,2]
[394913527,1764114640333,-125138.0220031,9.274e-05,2]
[394913578,1764114640785,-11188.22737744,9.274e-05,2]
[394913580,1764114640798,-10507.0,9.274e-05,2]
[394913583,1764114640808,-1807.19034913,9.274e-05,2]
[394913585,1764114640819,-22840.70730775,9.274e-05,2]
[394913696,1764114646106,-830.6395,9.181e-05,2]
[394913711,1764114646244,-46925.20360002,9.181e-05,2]
[394913714,1764114646254,-404.11999513,9.274e-05,2]
[394913718,1764114646265,-54681.17386914,9.274e-05,2]
[394913720,1764114646276,-29327.48054273,9.274e-05,2]
[394913722,1764114646287,-4151.97647766,9.274e-05,2]
[394913724,1764114646297,-63653.293883,9.274e-05,2]
[394913726,1764114646308,-494.293216,9.274e-05,2]
[394913783,1764115710701,200.0,0.00019813,120]
[394913815,1764115832224,-223.0,8.772e-05,2]
[394913816,1764115832235,-273.75902954,8.862e-05,2]
[394913817,1764115832245,-353.43546982,9.144e-05,2]
[394913818,1764115832254,-125.53523935,9.163e-05,2]
[394913819,1764115832287,-255.49749186,9.163e-05,2]
[394913820,1764115832299,-308.96726879,9.163e-05,2]
[394913821,1764115832309,-402.14780413,9.164e-05,2]
[394913822,1764115832319,-218.14743522,9.164e-05,2]
[394913836,1764115838552,-496.75902954,8.684e-05,2]
[394913837,1764115838562,-381.85256478,9.164e-05,2]
[394913838,1764115838572,-500.0,9.164e-05,2]
[394913839,1764115838581,-500.0,9.164e-05,2]
[394913840,1764115838591,-354.99810324,9.164e-05,2]
[394913841,1764115838600,-4455.59295203,9.165e-05,2]
[394913842,1764115838611,-302.0,9.165e-05,2]
[394913843,1764115838623,-17703.85151146,9.165e-05,2]
[394913844,1764115838636,-13555.50715727,9.165e-05,2]
[394914031,1764115846465,-594.02335773,9.163e-05,2]
[394914032,1764115846475,-322.70066541,9.163e-05,2]
[394914033,1764115846484,-532.2112468,9.163e-05,2]
[394914034,1764115846493,-72.40586675,9.163e-05,2]
[394914035,1764116310719,200.0,0.00019912,120]
[394914036,1764116551485,164.743299,0.000196,30]
[394914037,1764116738819,200.0,0.000196,30]
[394914040,1764117030710,200.0,0.00021208,120]
[394914074,1764117038348,-221.0,8.459e-05,2]
[394914075,1764117038358,-221.0,8.544e-05,2]
[394914076,1764117038367,-271.28384895,8.631e-05,2]
[394914077,1764117038376,-353.43546982,8.963e-05,2]
[394914078,1764117038386,-500.0,9.063e-05,2]
[394914079,1764117038395,-500.0,9.063e-05,2]
[394914080,1764117038404,-500.0,9.063e-05,2]
[394914081,1764117038413,-35.53926136,9.063e-05,2]
[394914082,1764117038429,-326.93934112,9.063e-05,2]
[394914083,1764117038440,-137.52139752,9.063e-05,2]
[394914084,1764117038449,-500.0,9.063e-05,2]
[394914085,1764117038458,-500.0,9.063e-05,2]
[394914086,1764117038468,-132.15295846,9.063e-05,2]
[394914356,1764117048300,-367.84704154,9.063e-05,2]
[394914357,1764117048311,-500.0,9.063e-05,2]
[394914358,1764117048321,-500.0,9.063e-05,2]
[394914359,1764117048332,-500.0,9.063e-05,2]
[394914360,1764117048342,-500.0,9.063e-05,2]
[394914361,1764117048352,-500.0,9.063e-05,2]
[394914362,1764117048363,-317.69727879,9.063e-05,2]
[394914363,1764117048376,-500.0,9.063e-05,2]
[394914364,1764117048385,-500.0,9.063e-05,2]
[394914365,1764117048394,-500.0,9.063e-05,2]
[394914366,1764117048403,-500.0,9.063e-05,2]
[394914367,1764117048412,-500.0,9.063e-05,2]
[394914368,1764117048422,-500.0,9.063e-05,2]
[394914369,1764117048431,-500.0,9.063e-05,2]
[394914370,1764117048441,-500.0,9.063e-05,2]
[394914371,1764117048452,-500.0,9.063e-05,2]
[394914372,1764117048462,-500.0,9.063e-05,2]
[394914373,1764117048471,-500.0,9.063e-05,2]
[394914374,1764117048481,-500.0,9.063e-05,2]
[394914375,1764117048490,-500.0,9.063e-05,2]
[394914376,1764117048499,-500.0,9.063e-05,2]
[394914377,1764117048508,-500.0,9.063e-05,2]
[394914378,1764117048517,-500.0,9.063e-05,2]
[394914379,1764117048528,-500.0,9.063e-05,2]
[394914380,1764117048537,-500.0,9.063e-05,2]
[394914381,1764117048547,-500.0,9.063e-05,2]
[394914382,1764117048556,-430.5614148,9.063e-05,2]
[394914383,1764117048566,-500.0,9.063e-05,2]
[394914384,1764117048576,-500.0,9.063e-05,2]
[394914385,1764117048585,-500.0,9.063e-05,2]
[394914386,1764117048594,-500.0,9.063e-05,2]
[394914387,1764117048603,-500.0,9.063e-05,2]
[394914388,1764117048612,-500.0,9.063e-05,2]
[394914389,1764117048621,-500.0,9.063e-05,2]
[394914390,1764117048630,-500.0,9.063e-05,2]
[394914391,1764117048639,-500.0,9.063e-05,2]
[394914393,1764117048649,-500.0,9.063e-05,2]
[394914394,1764117048658,-500.0,9.063e-05,2]
[394914395,1764117048667,-500.0,9.063e-05,2]
[394914396,1764117048676,-500.0,9.063e-05,2]
[394914397,1764117048685,-500.0,9.063e-05,2]
[394914398,1764117048694,-500.0,9.063e-05,2]
[394914399,1764117048703,-188.31433759,9.063e-05,2]
[394914400,1764117048712,-500.0,9.063e-05,2]
[394914401,1764117048721,-500.0,9.063e-05,2]
[394914402,1764117048730,-500.0,9.063e-05,2]
[394914403,1764117048739,-300.0,9.063e-05,2]
[394914404,1764117048748,-195.0,9.064e-05,2]
[394914405,1764117048757,-281.50346289,9.064e-05,2]
[394914406,1764117048766,-500.0,9.064e-05,2]
[394914407,1764117048775,-500.0,9.064e-05,2]
[394914408,1764117048784,-368.49867226,9.064e-05,2]
[394914409,1764117048793,-50000.0,9.065e-05,2]
[394914410,1764117048801,-18372.16185769,9.067e-05,2]
[394914411,1764117048811,-506.10818296,9.1e-05,2]
[394914412,1764117048820,-301.0892545,9.17e-05,2]
[394914413,1764117048829,-1331.890504,9.17e-05,2]
[394914414,1764117048838,-164.2628813,9.17e-05,2]
[394914415,1764117048847,-191.9645946,9.17e-05,2]
[394914416,1764117048856,-183.5933191,9.261e-05,2]
[394914417,1764117048865,-9485.9576551,9.261e-05,2]
[394914418,1764117048874,-658.4056721,9.261e-05,2]
[394914419,1764117048883,-1101.5599136,9.261e-05,2]
[394914420,1764117048892,-12707.1898932,9.267e-05,2]
[394914421,1764117048901,-191.9645946,9.27e-05,2]
[394914422,1764117048911,-617.04317879,9.435e-05,2]
[394914423,1764117048920,-348.44791273,9.49e-05,3]
[394914424,1764117048930,-1110.67772183,9.541e-05,2]
[394914425,1764117048939,-305.487743,9.644e-05,2]
[394914426,1764117048948,-1974.53817214,9.648e-05,2]
[394914427,1764117048958,-600.0,9.771e-05,2]
[394914428,1764117048967,-404.7937247,9.777e-05,2]
[394914429,1764117048976,-168.3888056,0.0001,2]
[394914430,1764117048986,-527.87786153,0.00010126,2]
[394914431,1764117048995,-1396.36063274,0.00010126,2]
[394914432,1764117049004,-1101.5599136,0.00010268,2]
[394914433,1764117049014,-1396.36063274,0.00010379,2]
[394914434,1764117049023,-2116.6032507,0.00010483,2]
[394914435,1764117049032,-174.61919141,0.00010548,2]
[394914436,1764117049041,-320.11494176,0.00010631,2]
[394914437,1764117049051,-1396.36063274,0.00010632,2]
[394914438,1764117049060,-414.0,0.00010689,2]
[394914439,1764117049069,-450.85709749,0.00010715,2]
[394914440,1764117049079,-500.0,0.00010715,2]
[394914441,1764117049088,-500.0,0.00010715,2]
[394914442,1764117049097,-151.0,0.00010746,2]
[394914443,1764117049106,-720.0,0.00010748,2]
[394914444,1764117049115,-472.2780223,0.00010755,2]
[394914445,1764117049124,-500.0,0.00010776,2]
[394914446,1764117049134,-2835.3573159,0.0001086,2]
[394914447,1764117049146,-166.648034,0.00010883,2]
[394914448,1764117049155,-1396.36063274,0.00010885,2]
[394914449,1764117049165,-500.0,0.00010958,2]
[394914450,1764117049174,-500.0,0.00010958,2]
[394914451,1764117049183,-500.0,0.00010958,2]
[394914452,1764117049192,-500.0,0.00010958,2]
[394914453,1764117049201,-2113.81,0.00010958,2]
[394914454,1764117049209,-2037.0,0.00010958,2]
[394914455,1764117049219,-540.96,0.00010958,2]
[394914456,1764117049228,-500.0,0.00010958,2]
[394914457,1764117049237,-500.0,0.00010958,2]
[394914458,1764117049246,-500.0,0.00010958,2]
[394914459,1764117049255,-467.0114164,0.00010958,2]
[394914460,1764117049264,-719.23,0.00010958,2]
[394914461,1764117049278,-500.0,0.00010958,2]
[394914462,1764117049287,-500.0,0.00010958,2]
[394914463,1764117049297,-500.0,0.00010958,2]
[394914464,1764117049307,-500.0,0.00010958,2]
[394914465,1764117049316,-500.0,0.00010958,2]
[394914466,1764117049324,-257.48177048,0.00010958,2]
[394914467,1764117049335,-518.93,0.00010958,2]
[394914468,1764117049345,-500.0,0.00010958,2]
[394914469,1764117049355,-500.0,0.00010958,2]
[394914470,1764117049363,-500.0,0.00010958,2]
[394914471,1764117049373,-500.0,0.00010958,2]
[394914472,1764117049382,-500.0,0.00010958,2]
[394914473,1764117049391,-500.0,0.00010958,2]
[394914474,1764117049400,-500.0,0.00010958,2]
[394914475,1764117049409,-500.0,0.00010958,2]
[394914476,1764117049419,-500.0,0.00010958,2]
[394914477,1764117049428,-395.5780605,0.00010958,2]
[394914478,1764117049437,-500.0,0.00010958,2]
[394914479,1764117049447,-500.0,0.00010958,2]
[394914480,1764117049455,-500.0,0.00010958,2]
[394914481,1764117049464,-515.02,0.00010958,2]
[394914482,1764117049474,-500.0,0.00010958,2]
[394914483,1764117049484,-500.0,0.00010958,2]
[394914484,1764117049493,-500.0,0.00010958,2]
[394914485,1764117049502,-500.0,0.00010958,2]
[394914486,1764117049512,-641.61,0.00010958,2]
[394914487,1764117049521,-523.81,0.00010958,2]
[394914488,1764117049531,-533.27,0.00010958,2]
[394914489,1764117049539,-766.83,0.00010958,2]
[394914490,1764117049549,-500.0,0.00010958,2]
[394914491,1764117049558,-823.47,0.00010958,2]
[394914492,1764117049567,-860.06,0.00010958,2]
[394914493,1764117049575,-500.0,0.00010958,2]
[394914494,1764117049584,-1536.32,0.00010958,2]
[394914495,1764117049594,-630.48,0.00010958,2]
[394914496,1764117049603,-500.0,0.00010958,2]
[394914497,1764117049613,-691.44,0.00010958,2]
[394914498,1764117049624,-500.0,0.00010958,2]
[394914499,1764117049633,-500.0,0.00010958,2]
[394914500,1764117049643,-500.0,0.00010958,2]
[394914501,1764117049653,-500.0,0.00010958,2]
[394914502,1764117049661,-537.49,0.00010958,2]
[394914503,1764117049671,-500.0,0.00010958,2]
[394914504,1764117049681,-500.0,0.00010958,2]
[394914505,1764117049692,-500.0,0.00010958,2]
[394914506,1764117049703,-682.22,0.00010958,2]
[394914507,1764117049714,-500.0,0.00010958,2]
[394914508,1764117049723,-750.55,0.00010958,2]
[394914509,1764117049732,-3448.91,0.00010958,2]
[394914510,1764117049742,-1400.31,0.00010958,2]
[394914511,1764117049752,-500.0,0.00010958,2]
[394914512,1764117049761,-500.0,0.00010958,2]
[394914513,1764117049770,-500.0,0.00010958,2]
[394914514,1764117049781,-500.0,0.00010958,2]
[394914515,1764117049790,-555.5,0.00010958,2]
[394914516,1764117049802,-305.58864356,0.00010958,2]
[394914517,1764117049811,-165.74839045,0.00010958,2]
[394914518,1764117049821,-592.38,0.00010958,2]
[394914519,1764117049830,-539.41,0.00010958,2]
[394914520,1764117049840,-500.0,0.00010958,2]
[394914521,1764117049849,-500.0,0.00010958,2]
[394914522,1764117049858,-500.0,0.00010958,2]
[394914523,1764117049867,-500.0,0.00010958,2]
[394914524,1764117049876,-500.0,0.00010958,2]
[394914525,1764117049885,-500.0,0.00010958,2]
[394914526,1764117049894,-500.0,0.00010958,2]
[394914527,1764117049903,-500.0,0.00010958,2]
[394914528,1764117049912,-500.0,0.00010958,2]
[394914529,1764117049922,-500.0,0.00010958,2]
[394914530,1764117049931,-500.0,0.00010958,2]
[394914531,1764117049940,-500.0,0.00010958,2]
[394914532,1764117049950,-500.0,0.00010958,2]
[394914533,1764117049959,-510.5135003,0.00010958,2]
[394914534,1764117049968,-722.87,0.00010958,2]
[394914535,1764117049977,-1501.42,0.00010958,2]
[394914536,1764117049987,-783.33,0.00010958,2]
[394914537,1764117049996,-500.0,0.00010958,2]
[394914538,1764117050007,-704.73,0.00010958,2]
[394914539,1764117050015,-500.0,0.00010958,2]
[394914540,1764117050024,-500.0,0.00010958,2]
[394914541,1764117050033,-500.0,0.00010958,2]
[394914542,1764117050043,-534.51,0.00010958,2]
[394914543,1764117050053,-500.0,0.00010958,2]
[394914544,1764117050063,-1148.25,0.00010958,2]
[394914545,1764117050072,-500.0,0.00010958,2]
[394914546,1764117050083,-889.22,0.00010958,2]
[394914547,1764117050093,-500.0,0.00010958,2]
[394914548,1764117050102,-511.76,0.00010958,2]
[394914549,1764117050111,-500.0,0.00010958,2]
[394914550,1764117050121,-508.99,0.00010958,2]
[394914551,1764117050130,-999.0,0.00010959,2]
[394914552,1764117050140,-919.41514438,0.00010959,2]
[394914553,1764117050150,-919.41514438,0.00010959,2]
[394914554,1764117050160,-919.41514438,0.00010959,2]
[394914555,1764117050169,-919.41514438,0.00010959,2]
[394914556,1764117050179,-919.41514438,0.00010959,2]
[394914557,1764117050189,-919.41514438,0.00010959,2]
[394914558,1764117050198,-919.41514438,0.00010959,2]
[394914559,1764117050207,-919.41514438,0.00010959,2]
[394914560,1764117050217,-919.41514438,0.00010959,2]
[394914561,1764117050227,-919.41514438,0.00010959,2]
[394914562,1764117050237,-919.41514438,0.00010959,2]
[394914563,1764117050246,-919.41514438,0.00010959,2]
[394914564,1764117050255,-919.41514438,0.00010959,2]
[394914565,1764117050266,-919.41514438,0.00010959,2]
[394914566,1764117050279,-974.58005305,0.00010959,2]
[394914567,1764117050290,-974.58005305,0.00010959,2]
[394914568,1764117050299,-974.58005305,0.00010959,2]
[394914569,1764117050310,-974.58005305,0.00010959,2]
[394914570,1764117050320,-974.58005305,0.00010959,2]
[394914571,1764117050329,-974.58005305,0.00010959,2]
[394914572,1764117050338,-623.58170912,0.00010959,2]
[394914573,1764117050348,-991.43369306,0.00010959,2]
[394914574,1764117050357,-991.43369306,0.00010959,2]
[394914575,1764117050366,-991.43369306,0.00010959,2]
[394914576,1764117050375,-991.43369306,0.00010959,2]
[394914577,1764117050384,-991.43369306,0.00010959,2]
[394914578,1764117050393,-991.43369306,0.00010959,2]
[394914579,1764117050402,-991.43369306,0.00010959,2]
[394914580,1764117050411,-1349.45141557,0.00010959,2]
[394914581,1764117050421,-181.08010149,0.00011096,2]
[394914582,1764117050430,-1396.36063274,0.00011139,2]
[394914583,1764117050438,-632.6537319,0.00011216,2]
[394914584,1764117050448,-500.0,0.00011232,2]
[394914585,1764117050457,-500.0,0.00011232,2]
[394914586,1764117050466,-500.0,0.00011232,2]
[394914587,1764117050475,-500.0,0.00011232,2]
[394914588,1764117050485,-2113.81,0.00011232,2]
[394914589,1764117050494,-2037.0,0.00011232,2]
[394914590,1764117050503,-540.96,0.00011232,2]
[394914591,1764117050513,-500.0,0.00011232,2]
[394914592,1764117050523,-500.0,0.00011232,2]
[394914593,1764117050532,-500.0,0.00011232,2]
[394914594,1764117050541,-719.23,0.00011232,2]
[394914595,1764117050550,-500.0,0.00011232,2]
[394914596,1764117050559,-215.71933809,0.00011232,2]
[394914597,1764117050568,-500.0,0.00011232,2]
[394914598,1764117050577,-500.0,0.00011232,2]
[394914599,1764117050586,-500.0,0.00011232,2]
[394914600,1764117050595,-518.93,0.00011232,2]
[394914601,1764117050604,-500.0,0.00011232,2]
[394914602,1764117050613,-500.0,0.00011232,2]
[394914603,1764117050622,-500.0,0.00011232,2]
[394914604,1764117050631,-500.0,0.00011232,2]
[394914605,1764117050640,-500.0,0.00011232,2]
[394914606,1764117050651,-500.0,0.00011232,2]
[394914607,1764117050663,-500.0,0.00011232,2]
[394914608,1764117050672,-500.0,0.00011232,2]
[394914609,1764117050681,-500.0,0.00011232,2]
[394914610,1764117050690,-500.0,0.00011232,2]
[394914611,1764117050700,-500.0,0.00011232,2]
[394914612,1764117050709,-501.95741038,0.00011232,2]
[394914613,1764117050718,-515.02,0.00011232,2]
[394914614,1764117050726,-500.0,0.00011232,2]
[394914615,1764117050735,-500.0,0.00011232,2]
[394914616,1764117050744,-500.0,0.00011232,2]
[394914617,1764117050753,-369.25747005,0.00011232,2]
[394914618,1764117050762,-641.61,0.00011232,2]
[394914619,1764117050771,-523.81,0.00011232,2]
[394914620,1764117050781,-533.27,0.00011232,2]
[394914621,1764117050790,-766.83,0.00011232,2]
[394914622,1764117050799,-500.0,0.00011232,2]
[394914623,1764117050808,-823.47,0.00011232,2]
[394914624,1764117050817,-860.06,0.00011232,2]
[394914625,1764117050826,-500.0,0.00011232,2]
[394914626,1764117050835,-1536.32,0.00011232,2]
[394914627,1764117050844,-500.0,0.00011232,2]
[394914628,1764117050854,-691.44,0.00011232,2]
[394914629,1764117050863,-500.0,0.00011232,2]
[394914630,1764117050872,-500.0,0.00011232,2]
[394914631,1764117050881,-500.0,0.00011232,2]
[394914632,1764117050890,-500.0,0.00011232,2]
[394914633,1764117050899,-537.49,0.00011232,2]
[394914634,1764117051061,-500.0,0.00011232,2]
[394914635,1764117051073,-500.0,0.00011232,2]
[394914636,1764117051084,-500.0,0.00011232,2]
[394914637,1764117051095,-682.22,0.00011232,2]
[394914638,1764117051105,-500.0,0.00011232,2]
[394914639,1764117051115,-750.55,0.00011232,2]
[394914640,1764117051125,-3448.91,0.00011232,2]
[394914641,1764117051135,-1400.31,0.00011232,2]
[394914642,1764117051145,-500.0,0.00011232,2]
[394914643,1764117051154,-500.0,0.00011232,2]
[394914644,1764117051166,-500.0,0.00011232,2]
[394914645,1764117051175,-500.0,0.00011232,2]
[394914646,1764117051184,-555.5,0.00011232,2]
[394914647,1764117051194,-592.38,0.00011232,2]
[394914648,1764117051203,-539.41,0.00011232,2]
[394914649,1764117051213,-500.0,0.00011232,2]
[394914650,1764117051223,-500.0,0.00011232,2]
[394914651,1764117051233,-500.0,0.00011232,2]
[394914652,1764117051242,-500.0,0.00011232,2]
[394914653,1764117051252,-500.0,0.00011232,2]
[394914654,1764117051261,-500.0,0.00011232,2]
[394914655,1764117051276,-500.0,0.00011232,2]
[394914656,1764117051285,-500.0,0.00011232,2]
[394914657,1764117051295,-500.0,0.00011232,2]
[394914658,1764117051307,-500.0,0.00011232,2]
[394914659,1764117051316,-500.0,0.00011232,2]
[394914660,1764117051325,-500.0,0.00011232,2]
[394914661,1764117051334,-500.0,0.00011232,2]
[394914662,1764117051344,-722.87,0.00011232,2]
[394914663,1764117051353,-1501.42,0.00011232,2]
[394914664,1764117051363,-783.33,0.00011232,2]
[394914665,1764117051372,-500.0,0.00011232,2]
[394914666,1764117051383,-704.73,0.00011232,2]
[394914667,1764117051393,-500.0,0.00011232,2]
[394914668,1764117051403,-500.0,0.00011232,2]
[394914669,1764117051413,-500.0,0.00011232,2]
[394914670,1764117051423,-534.51,0.00011232,2]
[394914671,1764117051437,-524.413072,0.00011232,2]
[394914672,1764117051447,-1148.25,0.00011232,2]
[394914673,1764117051457,-500.0,0.00011232,2]
[394914674,1764117051467,-889.22,0.00011232,2]
[394914675,1764117051476,-500.0,0.00011232,2]
[394914676,1764117051486,-511.76,0.00011232,2]
[394914677,1764117051497,-500.0,0.00011232,2]
[394914678,1764117051506,-508.99,0.00011232,2]
[394914679,1764117051517,-1000.0,0.00011263,2]
[394914680,1764117051527,-506.80097054,0.00011263,2]
[394914681,1764117051541,-1101.5599136,0.00011275,2]
[394914682,1764117051554,-517.50857627,0.00011324,2]
[394914683,1764117051564,-1396.36063274,0.00011392,2]
[394914684,1764117051574,-2579.72369806,0.00011406,2]
[394914685,1764117051587,-500.0,0.00011506,2]
[394914686,1764117051597,-500.0,0.00011506,2]
[394914687,1764117051607,-500.0,0.00011506,2]
[394914688,1764117051617,-500.0,0.00011506,2]
[394914689,1764117051626,-2113.81,0.00011506,2]
[394914690,1764117051636,-2037.0,0.00011506,2]
[394914691,1764117051646,-540.96,0.00011506,2]
[394914692,1764117051656,-500.0,0.00011506,2]
[394914693,1764117051666,-500.0,0.00011506,2]
[394914694,1764117051676,-500.0,0.00011506,2]
[394914695,1764117051685,-719.23,0.00011506,2]
[394914696,1764117051695,-197.05658938,0.00011506,2]
[394914697,1764117051707,-500.0,0.00011506,2]
[394914698,1764117051716,-500.0,0.00011506,2]
[394914699,1764117051726,-500.0,0.00011506,2]
[394914700,1764117051736,-518.93,0.00011506,2]
[394914701,1764117051747,-500.0,0.00011506,2]
[394914702,1764117051758,-500.0,0.00011506,2]
[394914703,1764117051767,-500.0,0.00011506,2]
[394914704,1764117051777,-500.0,0.00011506,2]
[394914705,1764117051787,-500.0,0.00011506,2]
[394914706,1764117051799,-500.0,0.00011506,2]
[394914707,1764117051808,-500.0,0.00011506,2]
[394914708,1764117051817,-500.0,0.00011506,2]
[394914709,1764117051827,-500.0,0.00011506,2]
[394914710,1764117051837,-500.0,0.00011506,2]
[394914711,1764117051846,-500.0,0.00011506,2]
[394914712,1764117051856,-515.02,0.00011506,2]
[394914713,1764117051866,-500.0,0.00011506,2]
[394914714,1764117051877,-500.0,0.00011506,2]
[394914715,1764117051888,-500.0,0.00011506,2]
[394914716,1764117051898,-641.61,0.00011506,2]
[394914717,1764117051908,-523.81,0.00011506,2]
[394914718,1764117051918,-533.27,0.00011506,2]
[394914719,1764117051928,-766.83,0.00011506,2]
[394914720,1764117051938,-500.0,0.00011506,2]
[394914721,1764117051947,-823.47,0.00011506,2]
[394914722,1764117051957,-860.06,0.00011506,2]
[394914723,1764117051967,-500.0,0.00011506,2]
[394914724,1764117051977,-1536.32,0.00011506,2]
[394914725,1764117051986,-500.0,0.00011506,2]
[394914726,1764117051997,-691.44,0.00011506,2]
[394914727,1764117052007,-500.0,0.00011506,2]
[394914728,1764117052016,-500.0,0.00011506,2]
[394914729,1764117052025,-500.0,0.00011506,2]
[394914730,1764117052035,-500.0,0.00011506,2]
[394914731,1764117052045,-537.49,0.00011506,2]
[394914732,1764117052055,-500.0,0.00011506,2]
[394914733,1764117052066,-500.0,0.00011506,2]
[394914734,1764117052075,-500.0,0.00011506,2]
[394914735,1764117052085,-682.22,0.00011506,2]
[394914736,1764117052095,-500.0,0.00011506,2]
[394914737,1764117052105,-750.55,0.00011506,2]
[394914738,1764117052115,-3448.91,0.00011506,2]
[394914739,1764117052125,-1400.31,0.00011506,2]
[394914740,1764117052134,-500.0,0.00011506,2]
[394914741,1764117052144,-500.0,0.00011506,2]
[394914742,1764117052156,-500.0,0.00011506,2]
[394914743,1764117052166,-500.0,0.00011506,2]
[394914744,1764117052175,-555.5,0.00011506,2]
[394914745,1764117052186,-592.38,0.00011506,2]
[394914746,1764117052195,-539.41,0.00011506,2]
[394914748,1764117052205,-500.0,0.00011506,2]
[394914749,1764117052216,-500.0,0.00011506,2]
[394914750,1764117052226,-500.0,0.00011506,2]
[394914751,1764117052236,-500.0,0.00011506,2]
[394914752,1764117052246,-500.0,0.00011506,2]
[394914753,1764117052255,-500.0,0.00011506,2]
[394914754,1764117052265,-500.0,0.00011506,2]
[394914755,1764117052279,-500.0,0.00011506,2]
[394914756,1764117052289,-500.0,0.00011506,2]
[394914757,1764117052299,-500.0,0.00011506,2]
[394914758,1764117052311,-500.0,0.00011506,2]
[394914759,1764117052323,-500.0,0.00011506,2]
[394914760,1764117052333,-500.0,0.00011506,2]
[394914761,1764117052344,-722.87,0.00011506,2]
[394914762,1764117052355,-1501.42,0.00011506,2]
[394914763,1764117052366,-783.33,0.00011506,2]
[394914764,1764117052385,-500.0,0.00011506,2]
[394914765,1764117052395,-704.73,0.00011506,2]
[394914766,1764117052404,-500.0,0.00011506,2]
[394914767,1764117052413,-500.0,0.00011506,2]
[394914768,1764117052423,-500.0,0.00011506,2]
[394914769,1764117052433,-534.51,0.00011506,2]
[394914770,1764117052443,-1148.25,0.00011506,2]